fUST/lending_fUST_20260618
["ID","MTS","AMOUNT","RATE_DAILY","PERIOD"]
[425371393,1781731839000,-500.0,0.00016438,2]
[425371392,1781731839000,-500.0,0.00016438,2]
[425371394,1781731839000,-610.72,0.00016438,2]
[425371384,1781731839000,-500.0,0.00016438,2]
[425371369,1781731839000,-500.0,0.00016438,2]
[425371342,1781731839000,-500.0,0.00015637,2]
[425371367,1781731839000,-500.0,0.00016438,2]
[425371398,1781731839000,-500.0,0.00016438,2]
[425371339,1781731839000,-500.0,0.00015637,2]
[425371340,1781731839000,-500.0,0.00015637,2]
[425371341,1781731839000,-500.0,0.00015637,2]
[425371343,1781731839000,-640.49941074,0.00015637,2]
[425371346,1781731839000,-500.0,0.00015637,2]
[425371345,1781731839000,-500.0,0.00015637,2]
[425371344,1781731839000,-500.0,0.00015637,2]
[425371349,1781731839000,-500.0,0.00015637,2]
[425371347,1781731839000,-500.0,0.00015637,2]
[425371350,1781731839000,-434.7439721,0.00015637,2]
[425371348,1781731839000,-500.0,0.00015637,2]
[425371351,1781731839000,-423386.75265613,0.00015638,2]
[425371352,1781731839000,-151.0,0.00015732,2]
[425371353,1781731839000,-151.0,0.00015733,2]
[425371355,1781731839000,-151.0,0.00015733,2]
[425371363,1781731839000,-600.0,0.00016153,2]
[425371354,1781731839000,-151.0,0.00015733,2]
[425371356,1781731839000,-500.0,0.00015799,2]
[425371362,1781731839000,-303.85850664,0.00016134,2]
[425371358,1781731839000,-160.0,0.00015834,2]
[425371360,1781731839000,-3481.69066852,0.00016,2]
[425371357,1781731839000,-3481.69066852,0.000158,2]
[425371361,1781731839000,-160.0,0.00016099,2]
[425371359,1781731839000,-160.0,0.00015834,2]
[425371365,1781731839000,-3481.69066852,0.000162,2]
[425371364,1781731839000,-315.64684005,0.0001616,2]
[425371366,1781731839000,-3481.69066852,0.000163,2]
[425371399,1781731839000,-500.0,0.00016438,2]
[425371426,1781731839000,-3481.69066852,0.000165,2]
[425371396,1781731839000,-500.0,0.00016438,2]
[425371427,1781731839000,-151.0,0.00016555,2]
[425371432,1781731839000,-3481.69066852,0.000166,2]
[425371435,1781731839000,-246.11053462,0.00016712,2]
[425371434,1781731839000,-797.0,0.000167,2]
[425371436,1781731839000,-500.0,0.00016712,2]
[425371438,1781731839000,-500.0,0.00016712,2]
[425371437,1781731839000,-500.0,0.00016712,2]
[425371442,1781731839000,-500.0,0.00016712,2]
[425371441,1781731839000,-500.0,0.00016712,2]
[425371443,1781731839000,-500.0,0.00016712,2]
[425371440,1781731839000,-500.0,0.00016712,2]
[425371444,1781731839000,-500.0,0.00016712,2]
[425371431,1781731839000,-178.377218,0.00016578,2]
[425371445,1781731839000,-538.14,0.00016712,2]
[425371446,1781731839000,-500.0,0.00016712,2]
[425371448,1781731839000,-544.33740818,0.00016712,2]
[425371450,1781731839000,-500.0,0.00016712,2]
[425371449,1781731839000,-500.0,0.00016712,2]
[425371452,1781731839000,-500.0,0.00016712,2]
[425371451,1781731839000,-500.0,0.00016712,2]
[425371453,1781731839000,-500.0,0.00016712,2]
[425371457,1781731839000,-500.0,0.00016712,2]
[425371455,1781731839000,-243.59394515,0.00016712,2]
[425371454,1781731839000,-500.0,0.00016712,2]
[425371456,1781731839000,-4413.82,0.00016712,2]
[425371397,1781731839000,-721.92,0.00016438,2]
[425371447,1781731839000,-500.0,0.00016712,2]
[425371424,1781731839000,-226.98519422,0.00016438,2]
[425371439,1781731839000,-500.0,0.00016712,2]
[425371429,1781731839000,-151.0,0.00016555,2]
[425371401,1781731839000,-500.0,0.00016438,2]
[425371433,1781731839000,-303.85850664,0.00016635,2]
[425371402,1781731839000,-500.0,0.00016438,2]
[425371400,1781731839000,-500.0,0.00016438,2]
[425371403,1781731839000,-786.81,0.00016438,2]
[425371404,1781731839000,-450.8025583,0.00016438,2]
[425371406,1781731839000,-756.29,0.00016438,2]
[425371405,1781731839000,-789.98,0.00016438,2]
[425371409,1781731839000,-500.0,0.00016438,2]
[425371410,1781731839000,-500.0,0.00016438,2]
[425371414,1781731839000,-678.82,0.00016438,2]
[425371412,1781731839000,-500.0,0.00016438,2]
[425371407,1781731839000,-500.0,0.00016438,2]
[425371411,1781731839000,-500.0,0.00016438,2]
[425371408,1781731839000,-500.0,0.00016438,2]
[425371430,1781731839000,-151.0,0.00016555,2]
[425371428,1781731839000,-152.5990117,0.00016555,2]
[425371413,1781731839000,-500.0,0.00016438,2]
[425371425,1781731839000,-500.0,0.00016438,2]
[425371423,1781731839000,-500.0,0.00016438,2]
[425371422,1781731839000,-837.16,0.00016438,2]
[425371420,1781731839000,-500.0,0.00016438,2]
[425371421,1781731839000,-507.74527,0.00016438,2]
[425371419,1781731839000,-500.0,0.00016438,2]
[425371417,1781731839000,-500.0,0.00016438,2]
[425371416,1781731839000,-1192.14,0.00016438,2]
[425371415,1781731839000,-500.0,0.00016438,2]
[425371418,1781731839000,-500.0,0.00016438,2]
[425371501,1781731840000,-500.0,0.00016986,2]
[425371500,1781731840000,-538.14,0.00016986,2]
[425371506,1781731840000,-500.0,0.00016986,2]
[425371499,1781731840000,-500.0,0.00016986,2]
[425371498,1781731840000,-500.0,0.00016986,2]
[425371492,1781731840000,-500.0,0.00016986,2]
[425371496,1781731840000,-500.0,0.00016986,2]
[425371495,1781731840000,-500.0,0.00016986,2]
[425371494,1781731840000,-500.0,0.00016986,2]
[425371493,1781731840000,-500.0,0.00016986,2]
[425371458,1781731840000,-500.0,0.00016712,2]
[425371497,1781731840000,-500.0,0.00016986,2]
[425371503,1781731840000,-500.0,0.00016986,2]
[425371518,1781731840000,-721.92,0.00016986,2]
[425371502,1781731840000,-500.0,0.00016986,2]
[425371507,1781731840000,-500.0,0.00016986,2]
[425371505,1781731840000,-500.0,0.00016986,2]
[425371508,1781731840000,-500.0,0.00016986,2]
[425371509,1781731840000,-4413.82,0.00016986,2]
[425371510,1781731840000,-500.0,0.00016986,2]
[425371515,1781731840000,-610.72,0.00016986,2]
[425371512,1781731840000,-500.0,0.00016986,2]
[425371516,1781731840000,-500.0,0.00016986,2]
[425371520,1781731840000,-500.0,0.00016986,2]
[425371514,1781731840000,-500.0,0.00016986,2]
[425371511,1781731840000,-500.0,0.00016986,2]
[425371491,1781731840000,-500.0,0.00016986,2]
[425371504,1781731840000,-500.0,0.00016986,2]
[425371490,1781731840000,-3481.69066852,0.000168,2]
[425371459,1781731840000,-500.0,0.00016712,2]
[425371489,1781731840000,-6153.92481564,0.00016735,2]
[425371460,1781731840000,-500.0,0.00016712,2]
[425371462,1781731840000,-500.0,0.00016712,2]
[425371461,1781731840000,-610.72,0.00016712,2]
[425371464,1781731840000,-721.92,0.00016712,2]
[425371463,1781731840000,-500.0,0.00016712,2]
[425371465,1781731840000,-500.0,0.00016712,2]
[425371467,1781731840000,-500.0,0.00016712,2]
[425371469,1781731840000,-500.0,0.00016712,2]
[425371466,1781731840000,-500.0,0.00016712,2]
[425371468,1781731840000,-500.0,0.00016712,2]
[425371470,1781731840000,-786.81,0.00016712,2]
[425371472,1781731840000,-756.29,0.00016712,2]
[425371471,1781731840000,-789.98,0.00016712,2]
[425371488,1781731840000,-500.0,0.00016712,2]
[425371474,1781731840000,-500.0,0.00016712,2]
[425371475,1781731840000,-500.0,0.00016712,2]
[425371476,1781731840000,-500.0,0.00016712,2]
[425371477,1781731840000,-500.0,0.00016712,2]
[425371480,1781731840000,-500.0,0.00016712,2]
[425371482,1781731840000,-500.0,0.00016712,2]
[425371478,1781731840000,-500.0,0.00016712,2]
[425371479,1781731840000,-678.82,0.00016712,2]
[425371481,1781731840000,-1192.14,0.00016712,2]
[425371484,1781731840000,-266.27365908,0.00016712,2]
[425371483,1781731840000,-500.0,0.00016712,2]
[425371486,1781731840000,-837.16,0.00016712,2]
[425371487,1781731840000,-500.0,0.00016712,2]
[425371485,1781731840000,-500.0,0.00016712,2]
[425371473,1781731840000,-500.0,0.00016712,2]
[425371519,1781731840000,-500.0,0.00016986,2]
[425371523,1781731840000,-500.0,0.00016986,2]
[425371521,1781731840000,-500.0,0.00016986,2]
[425371556,1781731840000,-500.0,0.0001726,2]
[425371557,1781731840000,-500.0,0.0001726,2]
[425371551,1781731840000,-500.0,0.0001726,2]
[425371559,1781731840000,-500.0,0.0001726,2]
[425371560,1781731840000,-500.0,0.0001726,2]
[425371561,1781731840000,-500.0,0.0001726,2]
[425371563,1781731840000,-4413.82,0.0001726,2]
[425371562,1781731840000,-500.0,0.0001726,2]
[425371564,1781731840000,-500.0,0.0001726,2]
[425371565,1781731840000,-500.0,0.0001726,2]
[425371566,1781731840000,-500.0,0.0001726,2]
[425371570,1781731840000,-342.41511806,0.0001726,2]
[425371568,1781731840000,-610.72,0.0001726,2]
[425371550,1781731840000,-500.0,0.0001726,2]
[425371567,1781731840000,-500.0,0.0001726,2]
[425371571,1781731840000,-721.92,0.0001726,2]
[425371573,1781731840000,-500.0,0.0001726,2]
[425371572,1781731840000,-500.0,0.0001726,2]
[425371575,1781731840000,-500.0,0.0001726,2]
[425371576,1781731840000,-500.0,0.0001726,2]
[425371578,1781731840000,-789.98,0.0001726,2]
[425371574,1781731840000,-500.0,0.0001726,2]
[425371577,1781731840000,-786.81,0.0001726,2]
[425371579,1781731840000,-756.29,0.0001726,2]
[425371580,1781731840000,-500.0,0.0001726,2]
[425371582,1781731840000,-500.0,0.0001726,2]
[425371581,1781731840000,-500.0,0.0001726,2]
[425371517,1781731840000,-500.0,0.00016986,2]
[425371569,1781731840000,-500.0,0.0001726,2]
[425371558,1781731840000,-500.0,0.0001726,2]
[425371538,1781731840000,-500.0,0.00016986,2]
[425371554,1781731840000,-538.14,0.0001726,2]
[425371522,1781731840000,-500.0,0.00016986,2]
[425371525,1781731840000,-789.98,0.00016986,2]
[425371528,1781731840000,-500.0,0.00016986,2]
[425371526,1781731840000,-756.29,0.00016986,2]
[425371524,1781731840000,-786.81,0.00016986,2]
[425371529,1781731840000,-500.0,0.00016986,2]
[425371527,1781731840000,-500.0,0.00016986,2]
[425371530,1781731840000,-500.0,0.00016986,2]
[425371533,1781731840000,-678.82,0.00016986,2]
[425371534,1781731840000,-500.0,0.00016986,2]
[425371531,1781731840000,-500.0,0.00016986,2]
[425371532,1781731840000,-500.0,0.00016986,2]
[425371535,1781731840000,-1192.14,0.00016986,2]
[425371536,1781731840000,-500.0,0.00016986,2]
[425371555,1781731840000,-500.0,0.0001726,2]
[425371539,1781731840000,-837.16,0.00016986,2]
[425371553,1781731840000,-500.0,0.0001726,2]
[425371552,1781731840000,-500.0,0.0001726,2]
[425371549,1781731840000,-500.0,0.0001726,2]
[425371537,1781731840000,-500.0,0.00016986,2]
[425371543,1781731840000,-3481.69066852,0.00017,2]
[425371542,1781731840000,-560.74,0.00016998,3]
[425371548,1781731840000,-500.0,0.0001726,2]
[425371547,1781731840000,-515.87166552,0.0001726,2]
[425371545,1781731840000,-500.0,0.0001726,2]
[425371546,1781731840000,-500.0,0.0001726,2]
[425371541,1781731840000,-500.0,0.00016986,2]
[425371540,1781731840000,-500.0,0.00016986,2]
[425371544,1781731840000,-3481.69066852,0.000171,2]
[425371626,1781731841000,-191.80952162,0.00017532,2]
[425371625,1781731841000,-190.0,0.00017523,2]
[425371624,1781731841000,-210.0,0.00017523,2]
[425371622,1781731841000,-162.7640196,0.00017376,2]
[425371621,1781731841000,-158.39521515,0.00017376,2]
[425371616,1781731841000,-162.68262388,0.00017376,2]
[425371617,1781731841000,-155.98227275,0.00017376,2]
[425371614,1781731841000,-191.75357445,0.00017376,2]
[425371620,1781731841000,-152.72715866,0.00017376,2]
[425371615,1781731841000,-181.38102734,0.00017376,2]
[425371619,1781731841000,-150.87139136,0.00017376,2]
[425371636,1781731841000,-500.0,0.00017534,2]
[425371618,1781731841000,-154.78158367,0.00017376,2]
[425371628,1781731841000,-342.51700289,0.00017532,2]
[425371630,1781731841000,-500.0,0.00017534,2]
[425371633,1781731841000,-500.0,0.00017534,2]
[425371629,1781731841000,-500.0,0.00017534,2]
[425371634,1781731841000,-500.0,0.00017534,2]
[425371632,1781731841000,-500.0,0.00017534,2]
[425371635,1781731841000,-500.0,0.00017534,2]
[425371637,1781731841000,-538.14,0.00017534,2]
[425371638,1781731841000,-500.0,0.00017534,2]
[425371639,1781731841000,-500.0,0.00017534,2]
[425371642,1781731841000,-500.0,0.00017534,2]
[425371640,1781731841000,-500.0,0.00017534,2]
[425371641,1781731841000,-500.0,0.00017534,2]
[425371645,1781731841000,-500.0,0.00017534,2]
[425371612,1781731841000,-170.24966342,0.00017376,2]
[425371631,1781731841000,-500.0,0.00017534,2]
[425371623,1781731841000,-220.6621118,0.00017376,2]
[425371598,1781731841000,-169.5150449,0.00017375,2]
[425371611,1781731841000,-220.95356869,0.00017376,2]
[425371584,1781731841000,-500.0,0.0001726,2]
[425371583,1781731841000,-500.0,0.0001726,2]
[425371585,1781731841000,-500.0,0.0001726,2]
[425371587,1781731841000,-500.0,0.0001726,2]
[425371588,1781731841000,-500.0,0.0001726,2]
[425371586,1781731841000,-678.82,0.0001726,2]
[425371591,1781731841000,-500.0,0.0001726,2]
[425371592,1781731841000,-837.16,0.0001726,2]
[425371589,1781731841000,-1192.14,0.0001726,2]
[425371594,1781731841000,-500.0,0.0001726,2]
[425371590,1781731841000,-500.0,0.0001726,2]
[425371593,1781731841000,-500.0,0.0001726,2]
[425371595,1781731841000,-3481.69066852,0.000173,2]
[425371613,1781731841000,-186.19240058,0.00017376,2]
[425371596,1781731841000,-153.81842707,0.00017369,2]
[425371643,1781731841000,-500.0,0.00017534,2]
[425371599,1781731841000,-592.91203592,0.00017375,2]
[425371602,1781731841000,-177.49853254,0.00017375,2]
[425371604,1781731841000,-167.9919661,0.00017375,2]
[425371603,1781731841000,-326.0852183,0.00017375,2]
[425371601,1781731841000,-154.59471899,0.00017375,2]
[425371605,1781731841000,-802.67040511,0.00017375,2]
[425371600,1781731841000,-152.84643256,0.00017375,2]
[425371606,1781731841000,-152.38447638,0.00017375,2]
[425371609,1781731841000,-169.25069573,0.00017376,2]
[425371607,1781731841000,-193.31423268,0.00017375,2]
[425371608,1781731841000,-195.80234872,0.00017375,2]
[425371610,1781731841000,-172.24153693,0.00017376,2]
[425371597,1781731841000,-815.51021126,0.00017373,2]
[425371647,1781731841000,-637.69331362,0.00017534,2]
[425371627,1781731841000,-219.21088185,0.00017532,2]
[425371646,1781731841000,-4413.82,0.00017534,2]
[425371680,1781731841000,-837.16,0.00017534,2]
[425371683,1781731841000,-1191.51,0.0001762,2]
[425371688,1781731841000,-500.0,0.00017808,2]
[425371686,1781731841000,-492.73125968,0.00017748,2]
[425371684,1781731841000,-1841.0,0.0001768,2]
[425371689,1781731841000,-500.0,0.00017808,2]
[425371692,1781731841000,-500.0,0.00017808,2]
[425371696,1781731841000,-538.14,0.00017808,2]
[425371693,1781731841000,-500.0,0.00017808,2]
[425371699,1781731841000,-500.0,0.00017808,2]
[425371694,1781731841000,-500.0,0.00017808,2]
[425371698,1781731841000,-500.0,0.00017808,2]
[425371701,1781731841000,-500.0,0.00017808,2]
[425371704,1781731841000,-500.0,0.00017808,2]
[425371695,1781731841000,-500.0,0.00017808,2]
[425371697,1781731841000,-500.0,0.00017808,2]
[425371700,1781731841000,-500.0,0.00017808,2]
[425371703,1781731841000,-500.0,0.00017808,2]
[425371702,1781731841000,-500.0,0.00017808,2]
[425371705,1781731841000,-4413.82,0.00017808,2]
[425371706,1781731841000,-500.0,0.00017808,2]
[425371709,1781731841000,-610.72,0.00017808,2]
[425371708,1781731841000,-500.0,0.00017808,2]
[425371711,1781731841000,-721.92,0.00017808,2]
[425371712,1781731841000,-500.0,0.00017808,2]
[425371713,1781731841000,-500.0,0.00017808,2]
[425371714,1781731841000,-500.0,0.00017808,2]
[425371707,1781731841000,-500.0,0.00017808,2]
[425371644,1781731841000,-500.0,0.00017534,2]
[425371691,1781731841000,-500.0,0.00017808,2]
[425371685,1781731841000,-15494.30520579,0.000177,2]
[425371710,1781731841000,-500.0,0.00017808,2]
[425371687,1781731841000,-720.0,0.00017768,2]
[425371690,1781731841000,-500.0,0.00017808,2]
[425371650,1781731841000,-500.0,0.00017534,2]
[425371652,1781731841000,-500.0,0.00017534,2]
[425371651,1781731841000,-610.72,0.00017534,2]
[425371664,1781731841000,-786.81,0.00017534,2]
[425371654,1781731841000,-721.92,0.00017534,2]
[425371649,1781731841000,-500.0,0.00017534,2]
[425371662,1781731841000,-500.0,0.00017534,2]
[425371653,1781731841000,-500.0,0.00017534,2]
[425371659,1781731841000,-500.0,0.00017534,2]
[425371656,1781731841000,-500.0,0.00017534,2]
[425371657,1781731841000,-500.0,0.00017534,2]
[425371666,1781731841000,-789.98,0.00017534,2]
[425371667,1781731841000,-756.29,0.00017534,2]
[425371648,1781731841000,-500.0,0.00017534,2]
[425371673,1781731841000,-500.0,0.00017534,2]
[425371669,1781731841000,-500.0,0.00017534,2]
[425371671,1781731841000,-500.0,0.00017534,2]
[425371670,1781731841000,-500.0,0.00017534,2]
[425371674,1781731841000,-678.82,0.00017534,2]
[425371676,1781731841000,-500.0,0.00017534,2]
[425371678,1781731841000,-500.0,0.00017534,2]
[425371675,1781731841000,-500.0,0.00017534,2]
[425371672,1781731841000,-500.0,0.00017534,2]
[425371668,1781731841000,-500.0,0.00017534,2]
[425371677,1781731841000,-1192.14,0.00017534,2]
[425371679,1781731841000,-500.0,0.00017534,2]
[425371682,1781731841000,-500.0,0.00017534,2]
[425371681,1781731841000,-500.0,0.00017534,2]
[425371756,1781731842000,-500.0,0.00018082,2]
[425371774,1781731842000,-678.82,0.00018082,2]
[425371758,1781731842000,-610.72,0.00018082,2]
[425371760,1781731842000,-500.0,0.00018082,2]
[425371755,1781731842000,-500.0,0.00018082,2]
[425371752,1781731842000,-500.0,0.00018082,2]
[425371745,1781731842000,-538.14,0.00018082,2]
[425371744,1781731842000,-500.0,0.00018082,2]
[425371753,1781731842000,-500.0,0.00018082,2]
[425371747,1781731842000,-500.0,0.00018082,2]
[425371750,1781731842000,-500.0,0.00018082,2]
[425371759,1781731842000,-500.0,0.00018082,2]
[425371751,1781731842000,-500.0,0.00018082,2]
[425371767,1781731842000,-789.98,0.00018082,2]
[425371765,1781731842000,-500.0,0.00018082,2]
[425371757,1781731842000,-500.0,0.00018082,2]
[425371763,1781731842000,-500.0,0.00018082,2]
[425371761,1781731842000,-721.92,0.00018082,2]
[425371766,1781731842000,-786.81,0.00018082,2]
[425371762,1781731842000,-500.0,0.00018082,2]
[425371768,1781731842000,-500.0,0.00018082,2]
[425371772,1781731842000,-500.0,0.00018082,2]
[425371771,1781731842000,-500.0,0.00018082,2]
[425371775,1781731842000,-500.0,0.00018082,2]
[425371770,1781731842000,-756.29,0.00018082,2]
[425371779,1781731842000,-500.0,0.00018082,2]
[425371776,1781731842000,-500.0,0.00018082,2]
[425371746,1781731842000,-500.0,0.00018082,2]
[425371764,1781731842000,-500.0,0.00018082,2]
[425371748,1781731842000,-500.0,0.00018082,2]
[425371732,1781731842000,-837.16,0.00017808,2]
[425371754,1781731842000,-4413.82,0.00018082,2]
[425371769,1781731842000,-500.0,0.00018082,2]
[425371715,1781731842000,-500.0,0.00017808,2]
[425371717,1781731842000,-786.81,0.00017808,2]
[425371716,1781731842000,-500.0,0.00017808,2]
[425371718,1781731842000,-789.98,0.00017808,2]
[425371719,1781731842000,-500.0,0.00017808,2]
[425371721,1781731842000,-756.29,0.00017808,2]
[425371720,1781731842000,-500.0,0.00017808,2]
[425371723,1781731842000,-500.0,0.00017808,2]
[425371722,1781731842000,-500.0,0.00017808,2]
[425371724,1781731842000,-500.0,0.00017808,2]
[425371726,1781731842000,-678.82,0.00017808,2]
[425371729,1781731842000,-1192.14,0.00017808,2]
[425371728,1781731842000,-500.0,0.00017808,2]
[425371725,1781731842000,-215.48999973,0.00017808,2]
[425371727,1781731842000,-500.0,0.00017808,2]
[425371730,1781731842000,-500.0,0.00017808,2]
[425371733,1781731842000,-500.0,0.00017808,2]
[425371731,1781731842000,-500.0,0.00017808,2]
[425371735,1781731842000,-6153.92481564,0.00017838,2]
[425371734,1781731842000,-500.0,0.00017808,2]
[425371738,1781731842000,-500.0,0.00018082,2]
[425371740,1781731842000,-500.0,0.00018082,2]
[425371736,1781731842000,-10000.0,0.00018055,2]
[425371741,1781731842000,-500.0,0.00018082,2]
[425371739,1781731842000,-500.0,0.00018082,2]
[425371737,1781731842000,-500.0,0.00018082,2]
[425371742,1781731842000,-500.0,0.00018082,2]
[425371743,1781731842000,-500.0,0.00018082,2]
[425371749,1781731842000,-500.0,0.00018082,2]
[425371780,1781731842000,-837.16,0.00018082,2]
[425371826,1781731842000,-500.0,0.00018356,2]
[425371778,1781731842000,-500.0,0.00018082,2]
[425371817,1781731842000,-500.0,0.00018356,2]
[425371814,1781731842000,-500.0,0.00018356,2]
[425371813,1781731842000,-500.0,0.00018356,2]
[425371816,1781731842000,-500.0,0.00018356,2]
[425371810,1781731842000,-316.79043029,0.00018156,2]
[425371815,1781731842000,-500.0,0.00018356,2]
[425371818,1781731842000,-500.0,0.00018356,2]
[425371820,1781731842000,-500.0,0.00018356,2]
[425371821,1781731842000,-538.14,0.00018356,2]
[425371822,1781731842000,-500.0,0.00018356,2]
[425371824,1781731842000,-500.0,0.00018356,2]
[425371828,1781731842000,-500.0,0.00018356,2]
[425371823,1781731842000,-500.0,0.00018356,2]
[425371808,1781731842000,-301.74278271,0.00018156,2]
[425371825,1781731842000,-500.0,0.00018356,2]
[425371829,1781731842000,-500.0,0.00018356,2]
[425371827,1781731842000,-500.0,0.00018356,2]
[425371832,1781731842000,-500.0,0.00018356,2]
[425371833,1781731842000,-500.0,0.00018356,2]
[425371841,1781731842000,-500.0,0.00018356,2]
[425371837,1781731842000,-500.0,0.00018356,2]
[425371835,1781731842000,-500.0,0.00018356,2]
[425371840,1781731842000,-500.0,0.00018356,2]
[425371838,1781731842000,-558.14513133,0.00018356,2]
[425371834,1781731842000,-610.72,0.00018356,2]
[425371836,1781731842000,-721.92,0.00018356,2]
[425371839,1781731842000,-500.0,0.00018356,2]
[425371777,1781731842000,-1192.14,0.00018082,2]
[425371831,1781731842000,-500.0,0.00018356,2]
[425371812,1781731842000,-781.16415203,0.00018277,7]
[425371830,1781731842000,-4413.82,0.00018356,2]
[425371819,1781731842000,-500.0,0.00018356,2]
[425371773,1781731842000,-500.0,0.00018082,2]
[425371811,1781731842000,-325.5280392,0.00018156,2]
[425371783,1781731842000,-307.63685414,0.0001815,2]
[425371782,1781731842000,-500.0,0.00018082,2]
[425371784,1781731842000,-545.45454546,0.00018152,2]
[425371785,1781731842000,-162.29117248,0.00018152,2]
[425371793,1781731842000,-335.9839322,0.00018155,2]
[425371787,1781731842000,-339.03008979,0.00018155,2]
[425371789,1781731842000,-305.69286513,0.00018155,2]
[425371790,1781731842000,-309.18943799,0.00018155,2]
[425371791,1781731842000,-354.99706508,0.00018155,2]
[425371788,1781731842000,-1185.82407185,0.00018155,2]
[425371792,1781731842000,-652.17043659,0.00018155,2]
[425371786,1781731842000,-611.63265845,0.00018154,2]
[425371794,1781731842000,-1605.34081022,0.00018155,2]
[425371781,1781731842000,-500.0,0.00018082,2]
[425371797,1781731842000,-391.60469744,0.00018155,2]
[425371799,1781731842000,-344.48307386,0.00018156,2]
[425371809,1781731842000,-305.45431733,0.00018156,2]
[425371803,1781731842000,-383.5071489,0.00018156,2]
[425371802,1781731842000,-372.38480116,0.00018156,2]
[425371806,1781731842000,-311.9645455,0.00018156,2]
[425371796,1781731842000,-386.62846537,0.00018155,2]
[425371805,1781731842000,-325.36524775,0.00018156,2]
[425371807,1781731842000,-309.56316734,0.00018156,2]
[425371800,1781731842000,-441.90713738,0.00018156,2]
[425371804,1781731842000,-362.76205468,0.00018156,2]
[425371798,1781731842000,-338.50139147,0.00018156,2]
[425371795,1781731842000,-304.76895276,0.00018155,2]
[425371801,1781731842000,-340.49932684,0.00018156,2]
[425371882,1781731843000,-500.0,0.0001863,2]
[425371888,1781731843000,-500.0,0.0001863,2]
[425371885,1781731843000,-4413.82,0.0001863,2]
[425371878,1781731843000,-500.0,0.0001863,2]
[425371883,1781731843000,-500.0,0.0001863,2]
[425371889,1781731843000,-610.72,0.0001863,2]
[425371886,1781731843000,-500.0,0.0001863,2]
[425371881,1781731843000,-500.0,0.0001863,2]
[425371884,1781731843000,-500.0,0.0001863,2]
[425371887,1781731843000,-500.0,0.0001863,2]
[425371891,1781731843000,-721.92,0.0001863,2]
[425371880,1781731843000,-500.0,0.0001863,2]
[425371876,1781731843000,-500.0,0.0001863,2]
[425371902,1781731843000,-500.0,0.0001863,2]
[425371896,1781731843000,-786.81,0.0001863,2]
[425371892,1781731843000,-500.0,0.0001863,2]
[425371894,1781731843000,-500.0,0.0001863,2]
[425371895,1781731843000,-500.0,0.0001863,2]
[425371898,1781731843000,-500.0,0.0001863,2]
[425371897,1781731843000,-789.98,0.0001863,2]
[425371899,1781731843000,-500.0,0.0001863,2]
[425371900,1781731843000,-756.29,0.0001863,2]
[425371905,1781731843000,-500.0,0.0001863,2]
[425371916,1781731843000,-500.0,0.0001863,2]
[425371918,1781731843000,-215.08417787,0.00018673,2]
[425371904,1781731843000,-500.0,0.0001863,2]
[425371906,1781731843000,-678.82,0.0001863,2]